bitfinex/quotes_SOLUSD_20250609
["timestamp","ask_amount","ask_price","bid_price","bid_amount"]
[1749478366230,0.8990184,154.07,154.06,42.54513699]
[1749478368938,0.8990184,154.07,154.06,61.19478585]
[1749478372440,0.8990184,154.07,154.06,102.75478585]
[1749478372618,0.8990184,154.07,154.06,84.10513699]
[1749478374841,0.8990184,154.07,154.06,31.26513699]
[1749478375015,0.8990184,154.07,154.06,17.77097754]
[1749478375218,0.8990184,154.07,154.02,7.68306157]
[1749478375219,0.8990184,154.07,154.02,6.49266329]
[1749478375442,25.67317785,154.07,154.04,11.28]
[1749478375817,25.67317785,154.07,154.06,6.49097754]
[1749478375818,0.8990184,154.07,154.06,6.49097754]
[1749478376923,0.8990184,154.07,154.06,31.26513699]
[1749478377245,0.8990184,154.07,154.06,6.49097754]
[1749478377622,0.8990184,154.07,154.05,6.49136426]
[1749478378027,0.8990184,154.07,154.06,77.55415945]
[1749478378740,0.8990184,154.07,154.06,52.78]
[1749478379344,0.8990184,154.07,154.05,31.26552371]
[1749478379645,0.8990184,154.07,154.06,52.76]
[1749478380024,16.21801159,154.15,154.06,52.76]
[1749478380025,7.9077906,154.2,154.13,26.0]
[1749478380349,24.77415945,154.23,154.16,50.77415945]
[1749478380539,24.77415945,154.21,154.17,52.94]
[1749478380731,24.77415945,154.2,154.17,11.32]
[1749478381247,24.77415945,154.21,154.17,11.32]
[1749478382145,24.77415945,154.18,154.14,18.64964886]
[1749478382347,24.77415945,154.18,154.13,37.38]
[1749478382348,24.77415945,154.15,154.13,55.18786691]
[1749478382650,24.77415945,154.14,154.13,48.7]
[1749478383044,24.77415945,154.14,154.13,11.32]
[1749478383247,27.8271,154.17,154.13,11.32]
[1749478383458,24.77415945,154.15,154.13,11.32]
[1749478383960,24.77415945,154.14,154.13,11.32]
[1749478384144,24.77415945,154.15,154.13,11.32]
[1749478384343,24.77415945,154.14,154.13,11.32]
[1749478386237,31.26176811,154.14,154.13,11.32]
[1749478387753,24.77415945,154.14,154.13,11.32]
[1749478388265,6.48705052,154.16,154.13,11.32]
[1749478388569,24.77415945,154.15,154.13,11.32]
[1749478390741,6.48705052,154.16,154.13,11.32]
[1749478390962,24.77415945,154.15,154.13,11.32]
[1749478393983,26.0,154.17,154.13,17.8077674]
[1749478394180,6.48575978,154.19,154.14,24.77415945]
[1749478394382,57.2593913,154.2,154.15,24.77415945]
[1749478394572,31.2593913,154.2,154.15,24.77415945]
[1749478395687,1.9271,154.22,154.15,47.94705309]
[1749478395870,26.0,154.21,154.17,24.77415945]
[1749478396067,50.77415945,154.21,154.17,24.77415945]
[1749478396473,24.77415945,154.2,154.15,72.72121254]
[1749478396670,24.77415945,154.19,154.15,47.94705309]
[1749478396987,24.77415945,154.18,154.12,18.64964886]
[1749478397174,24.77415945,154.18,154.14,24.77415945]
[1749478397683,24.77415945,154.19,154.15,24.77415945]
[1749478397988,24.77415945,154.2,154.16,24.77415945]
[1749478398185,32.48484171,154.21,154.16,24.77415945]
[1749478398388,32.48484171,154.21,154.17,24.77415945]
[1749478398569,57.25900116,154.21,154.17,24.77415945]
[1749478398763,26.0,154.21,154.17,24.77415945]
[1749478398968,50.77415945,154.21,154.17,24.77415945]
[1749478399166,50.77415945,154.23,154.18,24.77415945]
[1749478399373,26.0,154.23,154.18,24.77415945]
[1749478399583,24.77415945,154.23,154.18,31.25971733]
[1749478399771,6.48315064,154.25,154.19,24.77415945]
[1749478399972,24.77415945,154.23,154.19,36.09415945]
[1749478400176,6.48302639,154.25,154.2,24.77415945]
[1749478400389,24.77415945,154.24,154.2,24.77415945]
[1749478400582,24.77415945,154.23,154.19,36.09415945]
[1749478400784,24.77415945,154.23,154.19,11.32]
[1749478401382,24.77415945,154.23,154.19,17.80538744]
[1749478401706,24.77415945,154.23,154.19,42.57954689]
[1749478402202,32.48302639,154.25,154.19,42.57954689]
[1749478402495,24.77415945,154.23,154.19,42.57954689]
[1749478403171,24.77415945,154.23,154.19,17.80538744]
[1749478403373,24.77415945,154.23,154.19,11.32]
[1749478403672,16.2049657,154.28,154.22,24.77415945]
[1749478403673,32.48182639,154.28,154.22,24.77415945]
[1749478403978,32.48182639,154.28,154.21,41.8]
[1749478403979,24.77415945,154.27,154.21,41.8]
[1749478404182,24.77415945,154.27,154.23,24.77415945]
[1749478404499,24.77415945,154.27,154.21,41.8]
[1749478404678,24.77415945,154.27,154.22,24.77415945]
[1749478404880,7.1466,154.29,154.22,24.77415945]
[1749478405074,24.77415945,154.27,154.22,24.77415945]
[1749478405280,24.77415945,154.27,154.23,31.25798231]
[1749478406102,24.77415945,154.27,154.23,6.48382286]
[1749478406408,39.6280494,154.29,154.23,24.77415945]
[1749478406615,24.77415945,154.28,154.23,24.77415945]
[1749478406771,26.0,154.29,154.22,6.48424328]
[1749478406972,24.77415945,154.28,154.23,24.77415945]
[1749478407218,1.9754,154.31,154.24,24.77415945]
[1749478407373,26.0,154.3,154.26,24.77415945]
[1749478407720,24.77415945,154.29,154.25,11.52]
[1749478408110,24.77415945,154.3,154.25,36.29415945]
[1749478408289,24.77415945,154.29,154.25,11.52]
[1749478408490,57.2550886,154.3,154.25,36.29415945]
[1749478408690,26.0,154.3,154.25,42.77704527]
[1749478409090,57.25505394,154.3,154.25,42.77704527]
[1749478409317,24.77415945,154.27,154.22,6.48409431]
[1749478409617,32.48089449,154.3,154.23,11.52]
[1749478409618,24.77415945,154.25,154.23,11.52]
[1749478410213,24.77415945,154.24,154.23,11.52]
[1749478410396,42.20220349,154.3,154.23,11.52]
[1749478410397,24.77415945,154.25,154.23,11.52]
[1749478410819,24.77415945,154.26,154.23,11.52]
[1749478411889,24.77415945,154.25,154.23,11.52]
[1749478412321,6.48284311,154.26,154.23,11.52]
[1749478412514,24.77415945,154.25,154.23,11.52]
[1749478413194,24.77415945,154.24,154.23,11.52]
[1749478413889,6.48284311,154.26,154.23,11.52]
[1749478413890,24.77415945,154.25,154.23,11.52]
[1749478418215,24.77415945,154.26,154.23,18.00367736]
[1749478418830,24.77415945,154.27,154.23,18.00367736]
[1749478419221,24.77415945,154.28,154.23,42.77783681]
[1749478419415,24.77415945,154.3,154.25,24.77415945]
[1749478419610,1.9754,154.31,154.23,76.01323451]
[1749478419611,24.77415945,154.28,154.23,100.78739396]
[1749478419810,24.77415945,154.25,154.23,6.48367736]
[1749478420629,24.77415945,154.26,154.23,6.48367736]
[1749478420821,50.25616053,154.31,154.23,6.48367736]
[1749478420822,24.77415945,154.27,154.23,31.25783681]
[1749478421406,26.0,154.28,154.23,31.25783681]
[1749478421606,24.77415945,154.27,154.23,31.25783681]
[1749478422936,50.77415945,154.28,154.23,31.25783681]
[1749478423327,26.0,154.28,154.24,15.13491099]
[1749478423530,15.13491099,154.3,154.25,15.13491099]
[1749478423839,15.13491099,154.29,154.25,15.13491099]
[1749478424047,40.80419866,154.36,154.27,15.13491099]
[1749478424353,40.80419866,154.36,154.25,41.74]
[1749478424354,15.13491099,154.29,154.25,41.74]
[1749478424861,15.13491099,154.29,154.25,56.87491099]
[1749478425149,15.13491099,154.29,154.25,48.222779]
[1749478425353,6.48055167,154.31,154.25,63.35768999]
[1749478425721,15.13491099,154.31,154.26,15.13491099]
[1749478427133,15.13491099,154.31,154.27,6.48214169]
[1749478427528,15.13491099,154.31,154.27,21.61705268]
[1749478427759,42.92691099,154.32,154.27,21.61705268]
[1749478428143,15.13491099,154.31,154.27,6.48214169]
[1749478428448,42.92691099,154.32,154.27,21.61705268]
[1749478430051,42.92691099,154.32,154.25,57.94745542]
[1749478430052,42.92691099,154.32,154.26,6.4825619]
[1749478430248,42.92691099,154.32,154.27,15.13491099]
[1749478430461,27.792,154.32,154.27,15.13491099]
[1749478430665,42.92691099,154.32,154.27,15.13491099]
[1749478430855,27.792,154.32,154.27,15.13491099]
[1749478431175,6.47963885,154.33,154.28,15.13491099]
[1749478431376,15.13491099,154.32,154.28,26.63491099]
[1749478432371,15.13491099,154.32,154.29,6.48130144]
[1749478432559,15.13491099,154.32,154.28,33.11653112]
[1749478432760,6.47967437,154.33,154.28,33.11653112]
[1749478433055,26.0,154.34,154.3,15.13491099]
[1749478433056,41.13491099,154.34,154.3,15.13491099]
[1749478433258,26.0,154.34,154.3,15.13491099]
[1749478433476,41.13491099,154.34,154.29,15.13491099]
[1749478434274,15.13491099,154.33,154.28,33.11653112]
[1749478435454,41.13491099,154.34,154.29,15.13491099]
[1749478436564,41.13491099,154.34,154.3,6.48088139]
[1749478436763,41.13491099,154.34,154.29,15.13491099]
[1749478436764,47.61419443,154.34,154.29,21.6160726]
[1749478437071,41.13491099,154.34,154.29,21.6160726]
[1749478437377,15.13491099,154.33,154.28,17.84156751]
[1749478437557,15.13491099,154.33,154.28,32.9764785]
[1749478438076,15.13491099,154.32,154.28,17.84156751]
[1749478438249,15.13491099,154.33,154.28,32.9764785]
[1749478438453,15.13491099,154.33,154.28,17.84156751]
[1749478438767,15.13491099,154.33,154.28,32.9764785]
[1749478439460,15.13491099,154.32,154.28,17.84156751]
[1749478441374,15.13491099,154.33,154.29,15.13491099]
[1749478441571,1.8763,154.36,154.3,15.13491099]
[1749478441771,1.8763,154.36,154.28,34.04587137]
[1749478441772,15.13491099,154.35,154.28,34.04587137]
[1749478441982,15.13491099,154.33,154.28,6.48156751]
[1749478442168,15.13491099,154.31,154.28,6.48156751]
[1749478442476,15.13491099,154.31,154.27,26.49491099]
[1749478442477,15.13491099,154.31,154.27,17.84203128]
[1749478442686,15.13491099,154.31,154.27,32.97694227]
[1749478442856,15.13491099,154.3,154.27,11.36]
[1749478444068,15.13491099,154.31,154.27,17.84200206]
[1749478445464,32.4799645,154.33,154.27,32.97691305]
[1749478445663,15.13491099,154.31,154.27,17.84200206]
[1749478445864,32.4799645,154.33,154.27,17.84200206]
[1749478445865,15.13491099,154.3,154.27,11.36]
[1749478446275,32.4799645,154.33,154.27,11.36]
[1749478446276,15.13491099,154.28,154.27,11.36]
[1749478447699,15.13491099,154.28,154.22,33.3504]
[1749478447700,21.61663253,154.28,154.22,11.36]
[1749478447869,15.13491099,154.25,154.22,11.36]
[1749478448198,6.48172154,154.28,154.22,11.36]
[1749478448199,15.13491099,154.26,154.22,11.36]
[1749478448487,32.48138371,154.29,154.24,15.13491099]
[1749478448699,15.13491099,154.28,154.24,15.13491099]
[1749478449072,26.0,154.29,154.24,15.13491099]
[1749478449279,41.13491099,154.29,154.24,15.13491099]
[1749478449779,15.13491099,154.28,154.25,6.48298217]
[1749478449979,15.13491099,154.28,154.24,21.61824937]
[1749478450179,15.13491099,154.27,154.23,6.48363665]
[1749478451278,1.9331,154.3,154.25,15.13491099]
[1749478451472,15.13491099,154.28,154.24,56.75491099]
[1749478451671,15.13491099,154.27,154.22,21.61915427]
[1749478451870,1.9331,154.3,154.22,21.61915427]
[1749478451871,15.13491099,154.26,154.23,11.36]
[1749478452072,6.481643,154.29,154.23,11.36]
[1749478452073,15.13491099,154.27,154.23,11.36]
[1749478453022,15.13491099,154.27,154.24,6.48340248]
[1749478453933,15.13491099,154.26,154.24,6.48340248]
[1749478454516,6.481643,154.29,154.24,6.48340248]
[1749478454815,15.13491099,154.27,154.24,6.48340248]
[1749478455515,1.9331,154.3,154.24,6.48340248]
[1749478455516,1.9331,154.3,154.24,21.61831347]
[1749478455694,15.13491099,154.28,154.24,21.61831347]
[1749478455893,1.9331,154.3,154.24,6.48340248]
[1749478455894,15.13491099,154.27,154.24,6.48340248]
[1749478457935,15.13491099,154.26,154.23,17.84366914]
[1749478458136,15.13491099,154.25,154.23,17.84366914]
[1749478458325,15.13491099,154.25,154.23,11.36]
[1749478459427,24.09422966,154.3,154.24,15.13491099]
[1749478459428,1.9331,154.3,154.24,15.13491099]
[1749478459750,15.13491099,154.28,154.24,15.13491099]
[1749478460335,15.13491099,154.28,154.25,6.48298217]
[1749478460541,15.13491099,154.28,154.24,21.61812815]
[1749478460721,8.41413728,154.3,154.23,11.36]
[1749478460722,15.13491099,154.25,154.23,11.36]
[1749478463340,15.13491099,154.24,154.23,11.36]
[1749478463716,15.13491099,154.25,154.23,11.36]
[1749478464129,15.13491099,154.24,154.23,11.36]
[1749478464952,6.4829824,154.25,154.23,11.36]
[1749478465119,15.13491099,154.25,154.23,11.36]
[1749478465318,6.48233211,154.27,154.23,11.36]
[1749478465523,26.18525566,154.3,154.23,11.36]
[1749478465524,5.95863493,154.29,154.23,32.97863284]
[1749478465828,5.95863493,154.29,154.24,15.13491099]
[1749478465829,26.0,154.29,154.24,15.13491099]
[1749478466034,15.13491099,154.28,154.24,15.13491099]
[1749478466233,15.13491099,154.28,154.24,21.61799343]
[1749478466437,34.41424061,154.3,154.24,21.61799343]
[1749478466644,15.13491099,154.29,154.24,21.61799343]
[1749478468136,15.13491099,154.28,154.24,21.61799343]
[1749478468336,15.13491099,154.28,154.24,6.48308244]
[1749478470519,15.13491099,154.28,154.25,11.3]
[1749478470935,15.13491099,154.27,154.25,11.3]
[1749478471136,34.41417422,154.3,154.25,11.3]
[1749478471330,15.13491099,154.28,154.25,11.3]
[1749478471522,15.13491099,154.29,154.25,11.3]
[1749478472143,15.13491099,154.28,154.25,11.3]
[1749478473446,34.41417422,154.3,154.25,17.78286255]
[1749478473447,15.13491099,154.29,154.25,17.78286255]
[1749478474146,15.13491099,154.28,154.25,17.78286255]
[1749478474349,15.13491099,154.29,154.25,17.78286255]
[1749478474747,34.41408477,154.3,154.26,15.13491099]
[1749478474748,43.06801099,154.3,154.26,15.13491099]
[1749478475149,15.13491099,154.29,154.25,32.91777354]
[1749478476348,27.9331,154.3,154.25,32.91777354]
[1749478476534,6.1007965,154.33,154.27,15.13491099]
[1749478476535,41.13491099,154.32,154.27,15.13491099]
[1749478476935,41.13491099,154.31,154.27,15.13491099]
[1749478477249,26.0,154.32,154.25,17.78286255]
[1749478477250,15.13491099,154.29,154.25,17.78286255]
[1749478477555,26.0,154.32,154.25,32.91777354]
[1749478477755,15.13491099,154.29,154.25,32.91777354]
[1749478477954,15.13491099,154.29,154.25,11.3]
[1749478478156,15.13491099,154.28,154.25,11.3]
[1749478479644,21.6167702,154.28,154.25,11.3]
[1749478479849,15.13491099,154.27,154.25,11.3]
[1749478480559,32.01089394,154.31,154.25,26.43491099]
[1749478480864,15.13491099,154.28,154.25,11.3]
[1749478481543,15.13491099,154.28,154.25,17.78294238]
[1749478483859,15.13491099,154.28,154.25,11.3]
[1749478484161,15.13491099,154.26,154.25,11.3]
[1749478484946,15.13491099,154.26,154.18,87.7]
[1749478484947,56.26982198,154.26,154.18,87.7]
[1749478485156,15.13491099,154.22,154.18,87.7]
[1749478485345,15.13491099,154.22,154.18,6.48575652]
[1749478486061,15.13491099,154.22,154.17,72.15519901]
[1749478486260,19.9473326,154.22,154.17,72.15519901]
[1749478486560,15.13491099,154.22,154.17,72.15519901]
[1749478486967,19.9473326,154.22,154.17,72.15519901]
[1749478487260,15.13491099,154.22,154.17,72.15519901]
[1749478487961,15.13491099,154.2,154.17,48.66]
[1749478488360,15.13491099,154.21,154.17,70.28122418]
[1749478488746,15.13491099,154.21,154.17,55.14631319]
[1749478488948,15.13491099,154.21,154.17,48.66]
[1749478489158,15.13491099,154.21,154.17,55.14628862]
[1749478491473,6.62556405,154.24,154.17,70.28119961]
[1749478491672,15.13491099,154.21,154.17,70.28119961]
[1749478491977,15.13491099,154.21,154.17,63.79491099]
[1749478492462,15.13491099,154.2,154.17,48.66]
[1749478492871,15.13491099,154.2,154.17,55.14631598]
[1749478493074,15.13491099,154.2,154.17,48.66]
[1749478493869,15.13491099,154.18,154.17,11.3]
[1749478496368,21.62083653,154.18,154.17,11.3]
[1749478496565,21.62083653,154.18,154.13,11.3]
[1749478496765,15.13491099,154.16,154.13,11.3]
[1749478497671,15.13491099,154.16,154.13,17.78792962]
[1749478497861,15.13491099,154.16,154.13,11.3]
[1749478498190,15.13491099,154.16,154.13,17.78795584]
[1749478500073,15.13491099,154.16,154.13,11.3]
[1749478500280,15.13491099,154.16,154.13,17.78799589]
[1749478500659,15.13491099,154.17,154.13,17.78799589]
[1749478501066,15.13491099,154.17,154.13,32.92290688]
[1749478501490,15.13491099,154.15,154.13,11.3]
[1749478501775,6.48562308,154.19,154.1,14.35107777]
[1749478501776,15.13491099,154.14,154.11,11.2]
[1749478502484,67.56432314,154.2,154.13,15.13491099]
[1749478502485,41.13491099,154.17,154.13,15.13491099]
[1749478503372,41.13491099,154.17,154.12,15.13491099]
[1749478503574,41.13491099,154.17,154.13,6.48802958]
[1749478505073,15.13491099,154.16,154.13,6.48802958]
[1749478505413,15.13491099,154.16,154.12,21.62325317]
[1749478505691,15.13491099,154.16,154.12,6.48834218]
[1749478506081,15.13491099,154.14,154.11,17.68868533]
[1749478507086,15.13491099,154.15,154.11,17.68868533]
[1749478507474,15.13491099,154.15,154.11,32.82359632]
[1749478508888,15.13491099,154.16,154.12,15.13491099]
[1749478509479,15.13491099,154.16,154.11,32.82359632]
[1749478510068,15.13491099,154.15,154.11,32.82359632]
[1749478510785,15.13491099,154.15,154.11,17.68868533]
[1749478511496,32.4864418,154.17,154.11,17.68868533]
[1749478511790,15.13491099,154.15,154.11,17.68868533]
[1749478512176,15.13491099,154.15,154.11,32.82359632]
[1749478512492,15.13491099,154.14,154.11,17.68868533]
[1749478513165,32.4864418,154.17,154.11,17.68868533]
[1749478513166,26.0,154.17,154.11,17.68868533]
[1749478513370,15.13491099,154.17,154.13,15.13491099]
[1749478514663,15.13491099,154.17,154.11,17.68868533]
[1749478514664,15.13491099,154.15,154.12,6.48845055]
[1749478516373,6.48648105,154.17,154.12,6.48845055]
[1749478516574,15.13491099,154.15,154.12,6.48845055]
[1749478516791,15.13491099,154.16,154.12,21.62336154]
[1749478516987,15.13491099,154.17,154.12,21.62336154]
[1749478518995,15.13491099,154.16,154.12,21.62336154]
[1749478519197,15.13491099,154.16,154.12,6.48845055]
[1749478519600,15.13491099,154.15,154.12,6.48845055]
[1749478519776,15.13491099,154.14,154.11,17.68870781]
[1749478520798,6.48597879,154.18,154.11,17.68870781]
[1749478520799,15.13491099,154.15,154.11,17.68870781]
[1749478521171,15.13491099,154.15,154.11,32.8236188]
[1749478521979,15.13491099,154.15,154.11,17.68870781]
[1749478522788,6.48653456,154.17,154.11,32.8236188]
[1749478522996,26.0,154.17,154.13,15.13491099]
[1749478523500,15.13491099,154.18,154.13,15.13491099]
[1749478523881,9.002,154.22,154.16,21.62167798]
[1749478524084,15.13491099,154.21,154.17,15.13491099]
[1749478524296,15.13491099,154.2,154.16,21.62167798]
[1749478525797,35.002,154.22,154.18,15.13491099]
[1749478525798,26.0,154.22,154.18,15.13491099]
[1749478525997,6.48315009,154.25,154.2,15.13491099]
[1749478525998,15.13491099,154.24,154.2,15.13491099]
[1749478526190,41.13491099,154.24,154.2,15.13491099]
[1749478526378,41.13491099,154.24,154.19,15.13491099]
[1749478526978,41.13491099,154.24,154.2,6.4850843]
[1749478527184,41.13491099,154.24,154.2,21.61999529]
[1749478527384,26.0,154.24,154.2,21.61999529]
[1749478527585,15.13491099,154.28,154.23,15.13491099]
[1749478527790,47.25476555,154.29,154.23,15.13491099]
[1749478527999,26.0,154.28,154.24,15.13491099]
[1749478528204,41.13491099,154.28,154.24,15.13491099]
[1749478528803,15.13491099,154.28,154.24,15.13491099]
[1749478529007,15.13491099,154.29,154.25,15.13491099]
[1749478529186,41.13491099,154.29,154.25,15.13491099]
[1749478529387,47.61623942,154.29,154.25,15.13491099]
[1749478529597,21.61623942,154.29,154.25,15.13491099]
[1749478529806,15.13491099,154.29,154.25,15.13491099]
[1749478530013,41.13491099,154.29,154.25,15.13491099]
[1749478530498,16.88291099,154.3,154.26,15.13491099]
[1749478530891,16.88291099,154.3,154.25,21.61751534]
[1749478532420,16.88291099,154.3,154.25,6.48260435]
[1749478532718,16.88291099,154.3,154.25,21.61751534]
[1749478533097,15.13491099,154.3,154.25,21.61751534]
[1749478533299,15.13491099,154.3,154.26,15.13491099]
[1749478533609,21.61582097,154.3,154.25,15.13491099]
[1749478533789,15.13491099,154.28,154.23,15.13491099]
[1749478533997,6.48090998,154.3,154.22,87.7]
[1749478533998,15.13491099,154.26,154.22,87.7]
[1749478534209,21.61764779,154.26,154.22,87.7]
[1749478534600,15.13491099,154.25,154.21,26.33491099]
[1749478535186,15.13491099,154.25,154.21,11.2]
[1749478535393,15.13491099,154.22,154.15,34.8665967]
[1749478535603,26.0,154.25,154.17,11.2]
[1749478535604,0.14216157,154.24,154.17,11.2]
[1749478535930,15.13491099,154.2,154.17,11.2]
[1749478536432,0.14216157,154.24,154.17,11.2]
[1749478536433,15.13491099,154.19,154.17,11.2]
[1749478539506,15.13491099,154.2,154.17,11.2]
[1749478539702,26.0,154.21,154.17,17.68630856]
[1749478539908,41.13491099,154.21,154.17,17.68630856]
[1749478540312,6.48395986,154.23,154.18,15.13491099]
[1749478540510,15.13491099,154.22,154.18,21.62071075]
[1749478540722,15.13491099,154.21,154.17,32.82108914]
[1749478540924,15.13491099,154.19,154.17,11.2]
[1749478541811,15.13491099,154.18,154.17,11.2]
[1749478542334,15.13491099,154.18,154.13,62.88280712]
[1749478542335,15.13491099,154.18,154.13,74.08280712]
[1749478542514,15.13491099,154.17,154.13,74.08280712]
[1749478543406,15.13491099,154.17,154.13,58.94789613]
[1749478543605,15.13491099,154.18,154.14,15.13491099]
[1749478545527,15.13491099,154.18,154.14,21.62245933]
[1749478546318,6.4856101,154.19,154.13,11.2]
[1749478546629,6.4856101,154.19,154.12,94.9508]
[1749478546630,15.13491099,154.16,154.12,120.52317359]
[1749478547006,15.13491099,154.14,154.12,11.2]
[1749478548108,6.48736694,154.15,154.12,11.2]
[1749478548316,15.13491099,154.14,154.12,11.2]
[1749478548733,15.13491099,154.13,154.12,11.2]
[1749478549812,15.13491099,154.13,154.09,43.84943997]
[1749478550532,15.13491099,154.11,154.09,37.36]
[1749478550922,15.13491099,154.11,154.08,17.69013136]
[1749478551117,6.48778241,154.14,154.08,17.69013136]
[1749478551327,15.13491099,154.12,154.08,17.69013136]
[1749478551717,15.13491099,154.11,154.08,17.69013136]
[1749478552445,15.13491099,154.11,154.08,11.2]
[1749478552819,15.13491099,154.1,154.08,11.2]
[1749478553147,15.13491099,154.11,154.08,17.69009505]
[1749478554020,15.13491099,154.12,154.08,17.69009505]
[1749478554522,15.13491099,154.11,154.08,17.69009505]
[1749478558017,15.13491099,154.11,154.08,11.2]
[1749478558218,15.13491099,154.11,154.08,17.69009642]
[1749478559336,15.13491099,154.11,154.08,11.2]
[1749478559543,15.13491099,154.11,154.08,17.69010076]
[1749478559840,15.13491099,154.11,154.08,11.2]
[1749478560519,15.13491099,154.11,154.08,17.69011042]
[1749478561638,1.8194,154.16,154.1,15.13491099]
[1749478561839,15.13491099,154.16,154.12,15.13491099]
[1749478562057,15.13491099,154.16,154.12,21.62328836]
[1749478562657,15.13491099,154.16,154.08,68.68533748]
[1749478562658,21.62181428,154.16,154.08,68.68533748]
[1749478562865,15.13491099,154.13,154.09,15.13491099]
[1749478563029,15.13491099,154.13,154.08,68.68533748]
[1749478563030,15.13491099,154.12,154.06,132.34964886]
[1749478563234,15.13491099,154.12,154.05,18.03681369]
[1749478563235,15.13491099,154.1,154.07,11.2]
[1749478563539,0.14216157,154.13,154.07,11.2]
[1749478563754,15.13491099,154.08,154.07,11.2]
[1749478566730,15.13491099,154.08,154.03,11.2]
[1749478566966,15.13491099,154.07,154.03,6.49213625]
[1749478567169,15.13491099,154.06,154.03,6.49213625]
[1749478567466,6.4898613,154.09,154.03,21.62704724]
[1749478567467,15.13491099,154.07,154.03,21.62704724]
[1749478567976,15.13491099,154.07,154.03,6.49213625]
[1749478569272,15.13491099,154.07,154.03,21.62704724]
[1749478569479,15.13491099,154.08,154.03,21.62704724]
[1749478569787,15.13491099,154.08,154.04,15.13491099]
[1749478570360,15.13491099,154.08,154.04,21.62638698]
[1749478573368,15.13491099,154.09,154.04,21.62638698]
[1749478573548,15.13491099,154.09,154.05,15.13491099]
[1749478574766,15.13491099,154.09,154.06,6.49097754]
[1749478575464,15.13491099,154.1,154.06,6.49097754]
[1749478577165,15.13491099,154.09,154.06,6.49097754]
[1749478578097,15.13491099,154.07,154.02,17.69252107]
[1749478578275,32.48896291,154.11,154.02,17.69252107]
[1749478578276,15.13491099,154.05,154.02,17.69252107]
[1749478578580,15.13491099,154.06,154.02,17.69252107]
[1749478578746,15.13491099,154.06,154.02,32.82743206]
[1749478578946,15.13491099,154.07,154.02,32.82743206]
[1749478579145,41.26,154.09,154.02,17.69252107]
[1749478579366,15.13491099,154.05,154.02,17.69252107]
[1749478579562,1.8442,154.08,154.02,32.82743206]
[1749478579773,15.13491099,154.06,154.02,32.82743206]
[1749478580872,1.8442,154.08,154.02,32.82743206]
[1749478581078,15.13491099,154.06,154.02,32.82743206]
[1749478584049,15.13491099,154.05,154.02,17.69252107]
[1749478584476,15.13491099,154.06,154.02,17.69252107]
[1749478585779,15.13491099,154.07,154.02,32.82743206]
[1749478586880,15.13491099,154.08,154.04,15.13491099]
[1749478587175,15.13491099,154.09,154.05,15.13491099]
[1749478587565,15.13491099,154.09,154.02,33.92417929]
[1749478587566,15.13491099,154.09,154.04,15.13491099]
[1749478588481,15.13491099,154.1,154.06,15.13491099]
[1749478588860,15.13491099,154.1,154.07,6.49055624]
[1749478590153,15.13491099,154.12,154.08,15.13491099]
[1749478590377,15.13491099,154.12,154.07,21.62546723]
[1749478592390,73.74779419,154.14,154.07,21.62546723]
[1749478592588,15.13491099,154.13,154.08,15.13491099]
[1749478593064,15.13491099,154.12,154.08,21.6246425]
[1749478593265,15.13491099,154.12,154.08,6.48973151]
[1749478595159,15.13491099,154.12,154.08,21.6246425]
[1749478595765,15.13491099,154.12,154.08,6.48973151]
[1749478595965,21.62347121,154.12,154.07,32.80530062]
[1749478596177,15.13491099,154.1,154.07,11.18]
[1749478596387,15.13491099,154.1,154.07,17.67039133]
[1749478596696,15.13491099,154.11,154.07,32.80530232]
[1749478596889,32.48779849,154.14,154.08,15.13491099]
[1749478597190,15.13491099,154.13,154.08,15.13491099]
[1749478597393,4.80632997,154.12,154.08,15.13491099]
[1749478597872,4.80632997,154.13,154.09,15.13491099]
[1749478598488,19.94124096,154.13,154.09,21.62426718]
[1749478599181,4.80632997,154.13,154.09,21.62426718]
[1749478599393,19.94124096,154.13,154.09,6.48935619]
[1749478600089,15.13491099,154.12,154.09,6.48935619]
[1749478600294,15.13491099,154.11,154.08,6.48994697]
[1749478600679,4.80632997,154.12,154.07,11.18]
[1749478600680,15.13491099,154.1,154.07,11.18]
[1749478601080,15.13491099,154.1,154.07,17.6705217]
[1749478601283,26.0,154.11,154.07,32.80543269]
[1749478601486,19.94124096,154.12,154.07,32.80543269]
[1749478602100,19.94124096,154.12,154.08,15.13491099]
[1749478602293,19.94124096,154.12,154.07,17.6705217]
[1749478602294,4.80632997,154.12,154.07,17.6705217]
[1749478602479,19.94124096,154.12,154.08,21.62466855]
[1749478602668,15.13491099,154.12,154.08,6.48975756]
[1749478602874,19.94124096,154.12,154.08,21.62466855]
[1749478603074,15.13491099,154.12,154.08,21.62466855]
[1749478603268,19.94124096,154.12,154.08,21.62466855]